bitfinex/quotes_BTCUSD_20241028
["timestamp","ask_amount","ask_price","bid_price","bid_amount"]
[1730151591847,0.0285545,69750.0,69749.0,1.04089296]
[1730151592093,0.0285545,69750.0,69749.0,1.05189296]
[1730151592350,0.0285545,69750.0,69749.0,1.04289296]
[1730151592546,0.0285545,69750.0,69749.0,1.05389296]
[1730151594116,0.0285545,69750.0,69749.0,1.05189296]
[1730151594326,0.0285545,69750.0,69749.0,1.06037668]
[1730151594532,0.0265545,69750.0,69749.0,1.06037668]
[1730151594754,0.0265545,69750.0,69749.0,1.04937668]
[1730151595193,0.0265545,69750.0,69749.0,1.06237479]
[1730151595891,0.0265545,69750.0,69749.0,1.04937479]
[1730151596175,0.0265545,69750.0,69749.0,1.06237479]
[1730151596388,0.0265545,69750.0,69749.0,1.08757839]
[1730151596599,0.0265545,69750.0,69749.0,1.08357839]
[1730151597045,0.0265545,69750.0,69749.0,1.08757839]
[1730151597235,0.0265545,69750.0,69749.0,1.09475235]
[1730151598180,0.0265545,69750.0,69749.0,0.39475235]
[1730151598673,0.0265545,69750.0,69749.0,0.39475053]
[1730151600520,0.24796936,69750.0,69749.0,0.10452298]
[1730151600762,0.24796936,69750.0,69749.0,0.08901477]
[1730151600763,0.52213021,69750.0,69749.0,0.08901477]
[1730151601029,0.52213021,69750.0,69749.0,0.08453419]
[1730151601230,0.52213021,69750.0,69749.0,0.068648]
[1730151601231,0.82314978,69750.0,69749.0,0.068648]
[1730151601463,0.71393824,69750.0,69749.0,0.051648]
[1730151601677,1.06644192,69750.0,69749.0,0.051648]
[1730151601887,0.44405054,69746.0,69745.0,0.00165]
[1730151602108,0.58738581,69746.0,69745.0,0.00165]
[1730151602335,0.69485906,69746.0,69745.0,0.00165]
[1730151602553,0.58738581,69746.0,69745.0,0.00165]
[1730151602760,0.73067795,69746.0,69745.0,0.00165]
[1730151602985,0.77365544,69746.0,69745.0,0.00165]
[1730151603408,0.73067795,69746.0,69745.0,0.00165]
[1730151603623,0.58738581,69746.0,69745.0,0.00165]
[1730151604529,0.58738581,69746.0,69745.0,0.00465]
[1730151604995,0.58938581,69746.0,69745.0,0.00465]
[1730151605435,0.48017427,69746.0,69745.0,0.00465]
[1730151605664,0.61311673,69746.0,69745.0,0.00465]
[1730151605873,0.61511673,69746.0,69745.0,0.00465]
[1730151606094,0.48017427,69746.0,69745.0,0.00465]
[1730151606536,0.47817427,69746.0,69745.0,0.00465]
[1730151607198,0.48017427,69746.0,69745.0,0.00465]
[1730151607414,0.47817427,69746.0,69745.0,0.00465]
[1730151608515,0.311839,69746.0,69745.0,0.00465]
[1730151608763,0.42105054,69746.0,69745.0,0.00465]
[1730151610091,0.29201154,69746.0,69745.0,0.00465]
[1730151610332,0.42105054,69746.0,69745.0,0.00465]
[1730151614992,0.41105054,69746.0,69745.0,0.00465]
[1730151615713,0.47817427,69746.0,69745.0,0.00465]
[1730151620028,0.46817427,69746.0,69745.0,0.00465]
[1730151620287,0.47817427,69746.0,69745.0,0.00465]
[1730151620504,0.47317427,69746.0,69745.0,0.00465]
[1730151620744,0.46817427,69746.0,69745.0,0.00465]
[1730151623422,0.1728,69746.0,69745.0,0.00465]
[1730151623652,0.30501154,69746.0,69745.0,0.00465]
[1730151625675,0.30583654,69746.0,69745.0,0.00465]
[1730151627402,0.30583654,69746.0,69745.0,0.01434239]
[1730151627610,0.196625,69746.0,69745.0,0.01434239]
[1730151628310,0.196625,69746.0,69745.0,0.01134239]
[1730151628533,0.325664,69746.0,69745.0,0.01434239]
[1730151628762,0.326664,69746.0,69745.0,0.01434239]
[1730151628983,0.326664,69746.0,69745.0,0.01134239]
[1730151629218,0.325664,69746.0,69745.0,0.01134239]
[1730151629439,0.325664,69746.0,69745.0,0.0288758]
[1730151629659,0.325664,69746.0,69745.0,0.0268758]
[1730151630593,0.325664,69746.0,69745.0,0.02687606]
[1730151631047,0.325664,69746.0,69745.0,0.01535832]
[1730151631272,0.325664,69746.0,69745.0,0.03089212]
[1730151631713,0.325664,69746.0,69745.0,0.01735832]
[1730151631927,0.325664,69746.0,69745.0,0.03289084]
[1730151632593,0.325664,69746.0,69745.0,0.01735832]
[1730151632825,0.325664,69746.0,69745.0,0.03289084]
[1730151633775,0.325664,69746.0,69745.0,0.03289032]
[1730151634224,0.325664,69746.0,69745.0,0.03288986]
[1730151634434,0.37046936,69746.0,69745.0,0.03288986]
[1730151634877,0.37046936,69746.0,69745.0,0.03288833]
[1730151636384,0.37046936,69746.0,69745.0,0.01735688]
[1730151636879,0.37046936,69746.0,69745.0,0.03288746]
[1730151638144,0.37046936,69746.0,69745.0,0.01735688]
[1730151638361,0.37046936,69746.0,69745.0,0.03288737]
[1730151639046,0.37046936,69746.0,69745.0,0.00765]
[1730151639267,0.37046936,69746.0,69745.0,0.03288625]
[1730151639492,0.37046936,69746.0,69745.0,0.01735608]
[1730151640362,0.37036936,69746.0,69745.0,0.00765]
[1730151640569,0.37036936,69746.0,69745.0,0.01735601]
[1730151641049,0.325564,69746.0,69745.0,0.03288524]
[1730151641496,0.325564,69746.0,69745.0,0.01735601]
[1730151641722,0.325564,69746.0,69745.0,0.03288546]
[1730151642638,0.325564,69746.0,69745.0,0.03288684]
[1730151642869,0.325564,69746.0,69745.0,0.03288612]
[1730151643089,0.325564,69746.0,69745.0,0.03288809]
[1730151643589,0.325564,69746.0,69745.0,0.01735603]
[1730151643820,0.37035788,69746.0,69745.0,0.01735603]
[1730151644246,0.37035788,69746.0,69745.0,0.01335603]
[1730151644685,0.37135788,69746.0,69745.0,0.01335603]
[1730151644907,0.37035788,69746.0,69745.0,0.01335603]
[1730151645149,0.37135788,69746.0,69745.0,0.01135603]
[1730151646262,0.37135788,69746.0,69745.0,0.01435603]
[1730151646685,0.37135788,69746.0,69745.0,0.01435921]
[1730151647373,0.41336318,69746.0,69745.0,0.00465]
[1730151647679,0.37135788,69746.0,69745.0,0.00465]
[1730151647887,0.37135788,69746.0,69745.0,0.01436086]
[1730151648099,0.37135788,69746.0,69745.0,0.00465]
[1730151648310,0.37135788,69746.0,69745.0,0.00165]
[1730151648732,0.37135788,69746.0,69745.0,0.00465]
[1730151648943,0.37135788,69746.0,69745.0,0.01436176]
[1730151649576,0.37135788,69746.0,69745.0,0.00465]
[1730151650507,0.37135788,69746.0,69745.0,0.01436309]
[1730151651142,0.37035788,69746.0,69745.0,0.01136309]
[1730151651338,0.37135788,69746.0,69745.0,0.01136309]
[1730151651543,0.37135788,69746.0,69745.0,0.01436309]
[1730151652390,0.37135788,69746.0,69745.0,0.02407473]
[1730151652593,0.37135788,69746.0,69745.0,0.01436309]
[1730151653577,0.51469315,69746.0,69745.0,0.01436309]
[1730151657081,0.5474392,69746.0,69745.0,0.01436309]
[1730151659465,0.80942366,69746.0,69745.0,0.01436309]
[1730151659666,0.70390267,69746.0,69745.0,0.01436309]
[1730151661972,0.67115662,69746.0,69745.0,0.01436309]
[1730151662632,0.67115662,69746.0,69745.0,0.00465]
[1730151663260,0.77867761,69746.0,69745.0,0.00465]
[1730151663906,0.77869149,69746.0,69745.0,0.00465]
[1730151665432,0.75718512,69746.0,69745.0,0.00465]
[1730151665864,0.75799979,69746.0,69745.0,0.00465]
[1730151666114,0.51669315,69746.0,69745.0,0.00465]
[1730151666541,0.75797443,69746.0,69745.0,0.00465]
[1730151666975,0.66994847,69746.0,69745.0,0.00465]
[1730151667403,0.7559772,69746.0,69745.0,0.00465]
[1730151669826,0.75597689,69746.0,69745.0,0.00465]
[1730151670057,0.66994847,69746.0,69745.0,0.00465]
[1730151670273,0.75614973,69746.0,69745.0,0.00465]
[1730151670484,0.75614906,69746.0,69745.0,0.00465]
[1730151671115,0.67012177,69746.0,69745.0,0.00465]
[1730151673244,0.77765913,69746.0,69745.0,0.00465]
[1730151673453,0.67012177,69746.0,69745.0,0.00465]
[1730151674094,0.77765913,69746.0,69745.0,0.00465]
[1730151674291,0.77765604,69746.0,69745.0,0.00465]
[1730151674497,0.67012177,69746.0,69745.0,0.00465]
[1730151674906,0.66963143,69746.0,69745.0,0.00465]
[1730151675114,0.77716753,69746.0,69745.0,0.00465]
[1730151675530,0.66964145,69746.0,69745.0,0.00465]
[1730151675735,0.77717434,69746.0,69745.0,0.00465]
[1730151675945,0.67964145,69746.0,69745.0,0.00465]
[1730151676195,0.67964145,69746.0,69729.0,0.01555347]
[1730151676196,0.005,69738.0,69729.0,0.01555347]
[1730151676373,0.152072,69728.0,69722.0,0.14464123]
[1730151676615,0.152072,69728.0,69727.0,0.22506056]
[1730151676997,0.152072,69728.0,69727.0,0.00972431]
[1730151677646,0.04300562,69731.0,69721.0,0.0941]
[1730151677851,0.023,69732.0,69729.0,0.0941]
[1730151678079,0.023,69732.0,69730.0,0.00972185]
[1730151678304,0.023,69732.0,69729.0,0.0941]
[1730151678508,0.023,69732.0,69730.0,0.00971805]
[1730151678755,0.023,69732.0,69729.0,0.0941]
[1730151679233,0.023,69732.0,69729.0,0.22317]
[1730151679679,0.023,69735.0,69730.0,0.129068]
[1730151679898,0.023,69733.0,69730.0,0.129068]
[1730151680135,0.17203998,69738.0,69733.0,0.129063]
[1730151680360,0.04298498,69740.0,69732.0,0.1813]
[1730151680606,0.134045,69744.0,69738.0,0.129053]
[1730151680813,0.129047,69742.0,69738.0,0.129053]
[1730151681023,0.134044,69744.0,69738.0,0.129053]
[1730151681279,0.129045,69743.0,69738.0,0.129053]
[1730151681511,0.005,69745.0,69738.0,0.129053]
[1730151681512,0.1738197,69742.0,69739.0,0.00971326]
[1730151681725,0.129047,69742.0,69738.0,0.129053]
[1730151681931,0.129047,69742.0,69739.0,0.00971332]
[1730151682148,0.129047,69742.0,69738.0,0.129053]
[1730151682364,0.129047,69742.0,69739.0,0.0097136]
[1730151682596,0.129047,69742.0,69740.0,0.0097136]
[1730151682803,0.129047,69742.0,69741.0,0.0097136]
[1730151683038,0.129047,69742.0,69737.0,0.129056]
[1730151683256,0.129047,69742.0,69738.0,0.00971408]
[1730151683459,0.129047,69742.0,69739.0,0.01171408]
[1730151683665,0.129049,69741.0,69740.0,0.00971408]
[1730151683876,0.129049,69741.0,69740.0,0.01482104]
[1730151684478,0.129049,69741.0,69740.0,0.00510696]
[1730151684711,0.129049,69741.0,69740.0,0.01482079]
[1730151684935,0.129049,69741.0,69740.0,0.00971383]
[1730151685185,0.129049,69741.0,69740.0,0.01482079]
[1730151685851,0.129049,69741.0,69740.0,0.01782079]
[1730151685989,0.131049,69741.0,69740.0,0.01782079]
[1730151690415,0.17583389,69741.0,69740.0,0.01782079]
[1730151690610,0.131049,69741.0,69740.0,0.01782079]
[1730151691646,0.131049,69741.0,69740.0,0.01271383]
[1730151691826,0.17583311,69741.0,69740.0,0.01271383]
[1730151692027,0.131049,69741.0,69740.0,0.01271728]
[1730151692240,0.131049,69741.0,69740.0,0.01271742]
[1730151692445,0.17583424,69741.0,69740.0,0.003]
[1730151692878,0.131049,69741.0,69740.0,0.003]
[1730151693089,0.131049,69741.0,69740.0,0.01271734]
[1730151694185,0.17583441,69741.0,69740.0,0.003]
[1730151694581,0.131049,69741.0,69740.0,0.01271736]
[1730151694797,0.131049,69741.0,69740.0,0.003]
[1730151695339,0.17583504,69741.0,69740.0,0.01271737]
[1730151695528,0.131049,69741.0,69740.0,0.10811737]
[1730151695771,0.131049,69741.0,69740.0,0.18931737]
[1730151696101,0.131049,69741.0,69740.0,0.19442055]
[1730151696557,0.131049,69741.0,69740.0,0.19607055]
[1730151697159,0.131049,69741.0,69740.0,0.11487055]
[1730151697970,0.131049,69741.0,69740.0,0.13490257]
[1730151699158,0.131049,69741.0,69740.0,0.13041758]
[1730151699394,0.131049,69741.0,69740.0,0.11487055]
[1730151699594,0.131049,69741.0,69740.0,0.10515318]
[1730151699799,0.131049,69741.0,69740.0,0.13041114]
[1730151700011,0.131049,69741.0,69740.0,0.11486771]
[1730151701080,0.131049,69741.0,69740.0,0.11486731]
[1730151701491,0.131049,69741.0,69740.0,0.01946731]
[1730151702779,0.131049,69741.0,69740.0,0.12867885]
[1730151702998,0.131049,69741.0,69740.0,0.0350093]
[1730151704536,0.131049,69741.0,69740.0,0.0320093]
[1730151704750,0.129049,69741.0,69740.0,0.0320093]
[1730151705208,0.130049,69741.0,69740.0,0.0320093]
[1730151705447,0.130049,69741.0,69740.0,0.0350093]
[1730151705901,0.130049,69741.0,69740.0,0.0320093]
[1730151706128,0.130049,69741.0,69740.0,0.0360093]
[1730151706572,0.23926054,69741.0,69740.0,0.0360093]
[1730151706814,0.001,69741.0,69740.0,0.13349411]
[1730151707044,0.001,69741.0,69740.0,0.35573731]
[1730151707288,0.001,69741.0,69740.0,0.36528993]
[1730151707521,0.000825,69745.0,69744.0,0.005]
[1730151707759,0.000825,69745.0,69744.0,0.49507912]
[1730151707997,0.000825,69745.0,69744.0,0.52387525]
[1730151708236,0.000825,69745.0,69744.0,0.54004747]
[1730151708448,0.000825,69745.0,69744.0,0.52387525]
[1730151708909,0.000825,69745.0,69744.0,0.63387525]
[1730151709129,0.000825,69746.0,69745.0,0.144041]
[1730151709392,0.000825,69746.0,69745.0,0.52307204]
[1730151709636,0.000825,69746.0,69745.0,0.53596488]
[1730151710592,0.000825,69746.0,69745.0,0.54996488]
[1730151710823,0.000825,69746.0,69745.0,0.54987098]
[1730151711532,0.000825,69746.0,69745.0,0.55887098]
[1730151712436,0.000825,69746.0,69745.0,0.65887098]
[1730151713791,0.000825,69746.0,69745.0,0.76808252]
[1730151714022,0.000825,69746.0,69745.0,0.65887098]
[1730151714473,0.000825,69746.0,69745.0,0.6588163]
[1730151714686,0.000825,69746.0,69745.0,1.3588163]
[1730151715391,0.000825,69746.0,69745.0,1.3853703]
[1730151718315,0.000825,69746.0,69745.0,1.37466261]
[1730151718521,0.000825,69746.0,69745.0,1.38531583]
[1730151719883,0.000825,69746.0,69745.0,1.48052737]
[1730151720104,0.000825,69746.0,69745.0,1.49452737]
[1730151720318,0.000825,69746.0,69745.0,1.50257253]
[1730151720742,0.000825,69746.0,69745.0,1.51657253]
[1730151722755,0.000825,69746.0,69745.0,1.55913637]
[1730151722976,0.000825,69746.0,69745.0,1.51657253]
[1730151723231,0.0142746,69762.0,69749.0,0.319734]
[1730151723447,0.0142746,69762.0,69761.0,0.134011]
[1730151723448,0.22961085,69762.0,69761.0,0.134011]
[1730151723689,0.22961085,69762.0,69761.0,0.48268556]
[1730151723906,0.0142746,69762.0,69761.0,0.4876607]
[1730151724342,0.0142746,69762.0,69761.0,0.5976607]
[1730151724570,0.0142746,69762.0,69761.0,0.59766062]
[1730151724805,0.0142746,69762.0,69761.0,0.61166062]
[1730151725231,0.0142746,69762.0,69761.0,0.62366062]
[1730151725437,0.0142746,69762.0,69761.0,1.32366062]
[1730151725649,0.0142746,69762.0,69761.0,1.33431384]
[1730151725867,0.0142746,69762.0,69761.0,1.33966589]
[1730151726119,0.0142746,69762.0,69761.0,1.34683795]
[1730151726373,0.0142746,69762.0,69761.0,1.3939619]
[1730151727038,0.0142746,69762.0,69761.0,1.4513309]
[1730151728242,0.000812,69779.0,69774.0,0.005]
[1730151728469,0.000812,69779.0,69778.0,0.23228]
[1730151728681,0.000812,69779.0,69778.0,0.36026576]
[1730151728897,0.000812,69779.0,69778.0,0.39163882]
[1730151729360,0.000812,69779.0,69778.0,0.40329244]
[1730151729604,0.003728,69800.0,69799.0,0.015]
[1730151729825,0.003728,69800.0,69799.0,0.33620221]
[1730151730042,0.003728,69800.0,69799.0,0.34337367]
[1730151730310,0.003728,69800.0,69799.0,0.43678371]
[1730151730549,0.003728,69800.0,69799.0,0.47981878]
[1730151730781,0.003728,69800.0,69799.0,1.25308254]
[1730151731025,0.003728,69800.0,69799.0,1.32181878]
[1730151731318,0.003728,69800.0,69799.0,1.33581878]
[1730151731537,0.21533625,69817.0,69805.0,0.24393]
[1730151731779,0.21533625,69817.0,69805.0,1.14336267]
[1730151732209,0.21533625,69817.0,69805.0,1.26846328]
[1730151732465,0.21533625,69817.0,69805.0,1.24805583]
[1730151732703,0.21533625,69817.0,69805.0,1.31744074]
[1730151732921,0.21533625,69817.0,69805.0,1.1490402]
[1730151733159,0.21533625,69817.0,69805.0,1.04528644]
[1730151733618,0.21533625,69817.0,69805.0,1.04749457]
[1730151733851,0.47312725,69824.0,69805.0,1.04749457]
[1730151733852,0.21533625,69828.0,69805.0,1.32680012]
[1730151734116,0.21533625,69820.0,69805.0,1.27393334]
[1730151734545,0.21533625,69820.0,69805.0,1.28693334]
[1730151734785,0.21533625,69820.0,69805.0,1.1710671]
[1730151735003,0.21533625,69820.0,69805.0,1.0580671]
[1730151735243,0.38090303,69820.0,69805.0,0.35906192]
[1730151735474,0.34423925,69820.0,69805.0,0.35658495]
[1730151735692,0.34423925,69820.0,69805.0,0.35458302]
[1730151735916,0.34423925,69820.0,69805.0,0.34058302]
[1730151736362,0.34423925,69820.0,69805.0,0.35458302]
[1730151736576,0.34423925,69820.0,69805.0,0.32658302]
[1730151736799,0.34423925,69820.0,69805.0,0.35658495]
[1730151737026,0.21533625,69820.0,69805.0,0.34058302]
[1730151737251,0.21533625,69820.0,69805.0,0.35458302]
[1730151737482,0.21533625,69820.0,69805.0,1.04058302]
[1730151737483,0.000212,69806.0,69805.0,1.04058302]
[1730151737723,0.000212,69806.0,69805.0,1.05906274]
[1730151737960,0.000212,69806.0,69805.0,1.06962734]
[1730151738182,0.000212,69806.0,69805.0,1.05906274]
[1730151738856,0.000212,69806.0,69805.0,1.04506274]
[1730151739149,0.000212,69806.0,69805.0,1.05906274]
[1730151739823,0.000212,69806.0,69805.0,1.07535955]
[1730151740252,0.000212,69806.0,69805.0,1.06479674]
[1730151740920,0.000212,69806.0,69805.0,1.07535961]
[1730151741140,0.000212,69806.0,69805.0,1.06479674]
[1730151743208,1.4e-05,69815.0,69810.0,0.005]
[1730151743425,1.4e-05,69815.0,69811.0,0.3164934]
[1730151743637,1.4e-05,69815.0,69812.0,0.04423913]
[1730151743844,1.4e-05,69815.0,69813.0,0.1875744]
[1730151744059,1.4e-05,69815.0,69814.0,0.04423913]
[1730151744194,1.4e-05,69815.0,69814.0,0.1875744]
[1730151744406,1.4e-05,69815.0,69814.0,0.19327489]
[1730151745291,1.4e-05,69815.0,69814.0,0.89327489]
[1730151746140,0.023014,69815.0,69814.0,0.06393962]
[1730151746779,0.023014,69815.0,69814.0,0.07293962]
[1730151746780,0.128926,69815.0,69814.0,0.07293962]
[1730151746985,0.151926,69815.0,69814.0,0.03831736]
[1730151747186,0.151926,69815.0,69814.0,0.02361687]
[1730151747394,0.151926,69815.0,69814.0,0.00961687]
[1730151747621,0.151926,69815.0,69814.0,0.01661687]
[1730151748055,0.321826,69815.0,69814.0,0.01661687]
[1730151748290,0.321826,69815.0,69814.0,0.007]
[1730151749001,0.321826,69815.0,69814.0,0.021]
[1730151749242,0.321826,69815.0,69814.0,0.014]
[1730151749694,0.321826,69815.0,69814.0,0.001]
[1730151749930,0.321826,69815.0,69814.0,0.002]
[1730151750153,0.321826,69815.0,69814.0,0.001]
[1730151750874,0.48739278,69815.0,69814.0,0.001]
[1730151752043,0.48739278,69815.0,69806.0,0.21533625]
[1730151752044,0.128926,69807.0,69806.0,0.21533625]
[1730151752271,0.31749278,69807.0,69806.0,0.2249655]
[1730151752506,0.31749278,69807.0,69806.0,0.24694538]
[1730151752728,0.31749278,69807.0,69806.0,0.03160913]
[1730151753193,0.31749278,69807.0,69806.0,0.00962925]
[1730151753194,0.39889278,69807.0,69806.0,0.00962925]
[1730151753899,0.39889278,69807.0,69806.0,0.002]
[1730151754586,0.39889278,69807.0,69806.0,0.01164725]
[1730151755535,0.151939,69800.0,69799.0,0.0597]
[1730151755770,0.73954105,69800.0,69799.0,0.03578918]
[1730151756019,0.74954105,69800.0,69799.0,0.03578918]
[1730151756245,0.79400289,69800.0,69799.0,0.03578918]
[1730151756715,0.79400289,69800.0,69790.0,0.21533625]
[1730151756716,0.211156,69791.0,69790.0,0.21533625]
[1730151756950,0.39972278,69791.0,69790.0,0.23079246]
[1730151757192,0.234156,69791.0,69790.0,0.02230103]
[1730151757429,0.39972278,69791.0,69790.0,0.01545621]
[1730151757861,0.27076678,69791.0,69784.0,0.00448214]
[1730151758096,0.16556678,69785.0,69781.0,0.21533625]
[1730151758368,0.023,69782.0,69781.0,0.21533625]
[1730151758597,0.023,69779.0,69778.0,0.01064115]
[1730151758846,0.023,69779.0,69778.0,0.18605306]
[1730151759079,0.023,69783.0,69778.0,0.17541191]
[1730151759293,0.023,69783.0,69779.0,0.04643191]
[1730151759516,0.023,69786.0,69780.0,0.04643191]
[1730151759728,0.023,69786.0,69785.0,0.0160957]
[1730151759947,0.151965,69786.0,69785.0,0.06252761]
[1730151760161,0.151965,69786.0,69785.0,0.04643191]
[1730151760375,0.151965,69786.0,69785.0,0.05335244]
[1730151760589,0.330565,69786.0,69785.0,0.04618112]
[1730151761008,0.330565,69786.0,69785.0,0.03926059]
[1730151761478,0.330565,69786.0,69785.0,0.00448207]
[1730151761696,0.47390027,69786.0,69785.0,0.03923803]
[1730151761927,0.47390027,69786.0,69785.0,0.01644685]
[1730151762397,0.47390027,69786.0,69785.0,0.001]
[1730151762619,0.58993078,69786.0,69785.0,0.001]
[1730151762827,0.58993078,69786.0,69774.0,0.21533625]
[1730151762828,0.151986,69775.0,69774.0,0.21533625]
[1730151763040,0.151986,69775.0,69774.0,0.25455943]
[1730151763252,0.151986,69775.0,69774.0,0.04536121]
[1730151763485,0.230586,69775.0,69774.0,0.04536121]
[1730151764132,0.230586,69775.0,69774.0,0.04736121]
[1730151764356,0.230586,69775.0,69774.0,0.02357792]
[1730151764807,0.230586,69775.0,69774.0,0.03457792]
[1730151765029,0.230586,69775.0,69774.0,0.02943989]
[1730151765240,0.323686,69775.0,69774.0,0.02943989]
[1730151765445,0.323686,69775.0,69774.0,0.014]
[1730151765654,0.323686,69775.0,69774.0,0.001]
[1730151765866,0.323686,69775.0,69774.0,0.011]
[1730151766957,0.323686,69775.0,69774.0,0.01]
[1730151767624,0.323686,69775.0,69774.0,0.00963519]
[1730151767848,0.324686,69775.0,69774.0,0.01063519]
[1730151768058,0.324686,69775.0,69774.0,0.01228319]
[1730151768271,0.323686,69775.0,69774.0,0.01228319]
[1730151768604,0.324686,69775.0,69774.0,0.01128319]
[1730151768857,0.324686,69775.0,69774.0,0.001648]
[1730151769893,0.323686,69775.0,69774.0,0.001648]
[1730151770250,0.324686,69775.0,69774.0,0.001648]
[1730151770460,0.001,69775.0,69774.0,0.130635]
[1730151770665,0.001,69775.0,69774.0,0.1368141]
[1730151771270,0.001,69775.0,69774.0,0.1378141]
[1730151771491,0.128977,69780.0,69774.0,0.1368141]
[1730151771700,0.023,69778.0,69774.0,0.1368141]
[1730151771900,0.023,69778.0,69774.0,0.1378141]
[1730151772961,0.023,69778.0,69774.0,0.1368141]
[1730151773805,0.023,69778.0,69774.0,0.1378141]
[1730151774024,0.257942,69783.0,69775.0,0.13861669]
[1730151774025,0.128976,69781.0,69775.0,0.13861669]
[1730151774226,0.023,69779.0,69776.0,0.00963169]
[1730151774429,0.023,69779.0,69777.0,0.00963169]
[1730151774430,0.001,69778.0,69777.0,0.00963169]
[1730151774644,0.15298,69778.0,69777.0,0.00963169]
[1730151774851,0.128986,69775.0,69774.0,0.002648]
[1730151775060,0.151986,69775.0,69774.0,0.01228412]
[1730151775259,0.151986,69775.0,69774.0,0.01128412]
[1730151776959,0.151986,69775.0,69774.0,0.01852854]
[1730151777167,0.151986,69775.0,69774.0,0.02052854]
[1730151777369,0.151986,69775.0,69774.0,0.0359659]
[1730151777579,0.151986,69775.0,69774.0,0.02872148]
[1730151777789,0.151986,69775.0,69774.0,0.0359659]
[1730151778215,0.151986,69775.0,69774.0,0.02052854]
[1730151778429,0.023,69776.0,69774.0,0.03597132]
[1730151778665,0.151984,69776.0,69775.0,0.00963612]
[1730151778858,0.151984,69776.0,69775.0,0.01687695]
[1730151779484,0.151984,69776.0,69775.0,0.00963612]
[1730151779696,0.151984,69776.0,69775.0,0.03232613]
[1730151780136,0.151984,69776.0,69775.0,0.00724083]
[1730151780379,0.151984,69776.0,69775.0,0.03234495]
[1730151780592,0.151984,69776.0,69775.0,0.04779893]
[1730151781000,0.152984,69776.0,69775.0,0.04779893]
[1730151781527,0.151984,69776.0,69775.0,0.04779893]
[1730151781891,0.151984,69776.0,69775.0,0.04879893]
[1730151783104,0.151984,69776.0,69775.0,0.04779893]
[1730151783307,0.001,69776.0,69775.0,0.05169989]
[1730151783541,0.129984,69776.0,69775.0,0.05169989]
[1730151783851,0.152984,69776.0,69775.0,0.05169989]
[1730151783980,0.151984,69776.0,69775.0,0.0561826]
[1730151784401,0.151984,69776.0,69775.0,0.0571826]
[1730151784781,0.023,69777.0,69775.0,0.0561826]
[1730151784980,0.128969,69784.0,69779.0,0.128977]
[1730151785188,0.23833625,69783.0,69780.0,0.04894177]
[1730151785471,0.023,69783.0,69781.0,0.04894177]
[1730151785682,0.023,69783.0,69780.0,0.02333566]
[1730151785683,0.023825,69785.0,69782.0,0.04894177]
[1730151785840,0.151971,69783.0,69782.0,0.00723228]
[1730151786049,0.151974,69781.0,69776.0,0.0986]
[1730151786282,0.128974,69781.0,69777.0,0.0624804]
[1730151786482,0.023,69780.0,69778.0,0.06070511]
[1730151786647,0.128978,69779.0,69778.0,0.02331798]
[1730151786860,0.151978,69779.0,69778.0,0.05173202]
[1730151787054,0.151978,69779.0,69778.0,0.04904238]
[1730151788016,0.151978,69779.0,69778.0,0.02518562]
[1730151788222,0.151978,69779.0,69778.0,0.04456489]
[1730151789144,0.023,69781.0,69778.0,0.04557926]
[1730151789353,0.023,69781.0,69778.0,0.001]
[1730151789354,0.330778,69779.0,69778.0,0.001]
[1730151789562,0.15198,69778.0,69777.0,0.00717223]
[1730151789783,0.15198,69778.0,69777.0,0.03237436]
[1730151790218,0.15198,69778.0,69777.0,0.0323747]
[1730151790670,0.19670501,69778.0,69777.0,0.0323747]
[1730151791326,0.19670501,69778.0,69777.0,0.0353747]
[1730151793359,0.19670501,69778.0,69777.0,0.02820247]
[1730151794506,0.19670501,69778.0,69777.0,0.02820831]
[1730151797604,0.19670501,69778.0,69777.0,0.02821565]
[1730151798079,0.27870501,69778.0,69777.0,0.01269864]
[1730151798305,0.27870501,69778.0,69777.0,0.01269911]
[1730151798543,0.27870501,69778.0,69777.0,0.003]
[1730151799239,0.44427179,69778.0,69777.0,0.003]
[1730151799460,0.44927179,69778.0,69777.0,0.003]
[1730151799894,0.59260706,69778.0,69777.0,0.003]
[1730151801435,0.6355182,69778.0,69777.0,0.003]
[1730151801667,0.73894682,69778.0,69777.0,0.003]
[1730151802296,0.59260706,69778.0,69777.0,0.003]
[1730151802513,0.73894209,69778.0,69777.0,0.003]
[1730151803662,0.82476947,69778.0,69777.0,0.003]
[1730151803882,0.91836947,69778.0,69777.0,0.003]
[1730151804326,1.06166161,69778.0,69777.0,0.003]
[1730151805000,0.156984,69776.0,69775.0,0.00165]
[1730151805215,0.48656343,69776.0,69775.0,0.00165]
[1730151805423,0.58016343,69776.0,69775.0,0.00165]
[1730151805626,0.51574428,69776.0,69775.0,0.00165]
[1730151805843,0.65903642,69776.0,69775.0,0.00165]
[1730151806259,0.66003642,69776.0,69775.0,0.00165]
[1730151806481,0.80634726,69776.0,69775.0,0.00165]
[1730151806723,0.80834726,69776.0,69775.0,0.00265]
[1730151808998,0.91563149,69776.0,69775.0,0.00265]
[1730151809196,0.91573699,69776.0,69775.0,0.00265]
[1730151809424,1.02572806,69776.0,69775.0,0.00265]
[1730151809636,0.91834726,69776.0,69775.0,0.00265]
[1730151810502,1.02571863,69776.0,69775.0,0.00265]
[1730151812508,0.91834726,69776.0,69775.0,0.00265]
[1730151812937,1.08391404,69776.0,69775.0,0.00265]
[1730151813384,0.91834726,69776.0,69775.0,0.00265]
[1730151813620,1.08391404,69776.0,69775.0,0.00265]
[1730151814056,0.91834726,69776.0,69775.0,0.00265]
[1730151814270,1.08391404,69776.0,69775.0,0.00265]
[1730151814985,1.08409502,69776.0,69775.0,0.00265]
[1730151816993,0.91852824,69776.0,69775.0,0.00265]
[1730151817220,1.08409502,69776.0,69775.0,0.00265]
[1730151817671,1.08609502,69776.0,69775.0,0.00265]
[1730151818531,1.13832216,69776.0,69775.0,0.00265]
[1730151818757,1.35365841,69776.0,69775.0,0.00265]
[1730151818990,1.13832216,69776.0,69775.0,0.00265]
[1730151819687,1.13828111,69776.0,69775.0,0.00265]
[1730151819924,0.92048719,69776.0,69775.0,0.00265]
[1730151820148,1.13828111,69776.0,69775.0,0.00265]
[1730151820810,0.92048719,69776.0,69775.0,0.00265]
[1730151821022,1.13828111,69776.0,69775.0,0.00265]
[1730151821436,0.92048719,69776.0,69775.0,0.00265]
[1730151821661,1.13828111,69776.0,69775.0,0.00265]